[Event "Budapest One Week IM-B 03-2025"]
[Site "Budapest"]
[Date "2025.03.21"]
[Round "8.3"]
[White "Mrithyunjay Mahadevan"]
[Black "Turcsanyi, Vince Gergo"]
[Result "1/2-1/2"]
[Annotator "TA"]
[ECO "A05"]
[WhiteElo "2295"]
[BlackElo "2285"]
[PlyCount "40"]
[EventDate "2025.03.17"]
[EventType "tourn"]
[EventCountry "HUN"]
[SourceTitle "playchess.com"]
[Source "ChessBase"]
[SourceQuality "1"]
[TimeControl "5400+30"]

{[%evp 16,40,9,6,32,12,25,25,47,29,86,84,89,88,86,81,83,62,68,48,64,65,65,59,79,36,32]} 1. Nf3 {[%emt 0:00:25]} Nf6 {[%emt 0:00:07]} 2. b3 {[%emt 0:00:44]} e6 {[%emt 0:00:19]} 3. Bb2 {[%emt 0:00:06]} d5 {[%emt 0:00:17]} 4. e3 {[%emt 0:00:06]} Be7 {[%emt 0:01:04]} 5. d4 {[%emt 0:00:06]} O-O {[%emt 0:01:27]} 6. Bd3 {[%emt 0:03:13]} b6 {[%emt 0:01:44]} 7. O-O {[%emt 0:00:17]} Bb7 {[%emt 0:00:21]} 8. Nbd2 {[%emt 0:00:14]} Nbd7 {[%emt 0:02:29]} 9. c4 {[%emt 0:00:17]} Re8 {[%emt 0:02:56] D05: Colle System with ...e6.} 10. Rc1 {[%emt 0:00:33]} Bd6 {[%emt 0:11:32]} 11. Ne5 {[%emt 0:02:16]} Ne4 {[%emt 0:15:08] White has an edge.} 12. cxd5 {[%emt 0:03:47]} exd5 {[%emt 0:00:49] [#]} (12... Nxd2 $1 $11 {keeps the balance.} 13. Qxd2 Bxe5) 13. Nxe4 $1 $16 {[%emt 0:03:02]} dxe4 {[%emt 0:11:53]} 14. Bb5 {[%emt 0:00:23] White is more active.} Bxe5 {[%emt 0:00:20]} 15. dxe5 {[%emt 0:01:11]} c6 {[%emt 0:16:26]} 16. Bxc6 {[%emt 0:05:55]} Bxc6 {[%emt 0:00:16]} 17. Rxc6 {[%emt 0:00:07] And now Rd6 would win.} Nxe5 {[%emt 0:00:31]} 18. Bxe5 {[%emt 0:00:09]} Rxe5 {[%emt 0:01:43]} 19. Qc2 {[%emt 0:00:12]} h6 $146 {[%emt 0:04:26]} (19... Qd3 20. Rc8+ Re8 21. Qxd3 exd3 22. Rc3 Red8 23. Rd1 g6 24. Kf1 Rac8 25. Rdxd3 Rxc3 26. Rxd8+ {1-0 Forman,S (2331)-Zvara,D (1979) CZE-chT2C 1112 2011 (9.3)}) 20. Rd1 {[%emt 0:00:58]} Rd5 {[%emt 0:02:04] Weighted Error Value: White=0.11 (very precise) /Black=0.21 (precise)   Mistake:       	---       	Black=1      Inaccurate:     	White=1     	---        OK:         	White=2     	Black=1      Best:        	---       	Black=2      Strong:       	White=1     	---} 1/2-1/2

[Event "Budapest One Week IM-B 03-2025"]
[Site "Budapest"]
[Date "2025.03.21"]
[Round "8.4"]
[White "Luebke, Florentin"]
[Black "Jing, Andrew"]
[Result "1/2-1/2"]
[Annotator "TA"]
[ECO "B40"]
[WhiteElo "2233"]
[BlackElo "2198"]
[PlyCount "75"]
[EventDate "2025.03.17"]
[EventType "tourn"]
[EventCountry "HUN"]
[SourceTitle "playchess.com"]
[Source "ChessBase"]
[SourceQuality "1"]
[TimeControl "5400+30"]

{[%evp 9,75,44,60,35,75,45,38,37,45,41,45,27,45,16,18,16,17,20,15,6,115,106,127,122,124,62,61,66,80,60,88,56,37,5,48,56,42,0,0,0,0,0,0,0,0,0,0,0,0,0,0,0,0,0,0,0,0,0,0,0,0,0,0,0,0,0,0,0]} 1. e4 {[%emt 0:00:04]} c5 {[%emt 0:11:04]} 2. Nf3 {[%emt 0:01:17]} e6 {[%emt 0:00:09]} 3. g3 {[%emt 0:00:11]} a6 {[%emt 0:01:10]} 4. Bg2 {[%emt 0:00:14]} b5 {[%emt 0:00:05]} 5. O-O {[%emt 0:00:18]} Bb7 {[%emt 0:00:04]} 6. Re1 {[%emt 0:00:24] B40: Sicilian: 2...e6, Unusual lines.} Nc6 {[%emt 0:00:11]} 7. c3 {[%emt 0:00:23]} Nf6 {[%emt 0:12:22]} 8. d4 {[%emt 0:00:12] White is slightly better.} cxd4 {[%emt 0:04:26]} 9. cxd4 {[%emt 0:00:26]} d5 {[%emt 0:02:01]} 10. e5 {[%emt 0:00:11]} Ne4 {[%emt 0:04:31]} 11. Nbd2 {[%emt 0:00:28]} Nxd2 {[%emt 0:00:46]} 12. Bxd2 {[%emt 0:00:11]} Be7 $146 {[%emt 0:00:24]} (12... Qb6 13. Be3 Na5 14. b3 Nc6 15. a3 Rc8 16. Ng5 Be7 17. Qh5 Bxg5 18. Qxg5 O-O {0-1 Oratovsky,M (2501)-Cori Tello,D (2413) El Aguila Masters 2017 (6)}) 13. h4 {[%emt 0:01:22]} Qb6 {[%emt 0:01:26]} 14. Be3 {[%emt 0:01:50]} O-O-O {[%emt 0:01:46]} (14... Na5 $11 {keeps the balance.}) 15. a4 $16 {[%emt 0:05:35]} b4 {[%emt 0:00:44]} 16. Nd2 {[%emt 0:29:03]} Na5 {[%emt 0:00:56]} 17. Nb3 {[%emt 0:01:06]} ({Better is} 17. Rc1+ $16 Kb8 18. Ne4) 17... Nxb3 $1 $14 {[%emt 0:00:51]} 18. Qxb3 {[%emt 0:00:13]} a5 {[%emt 0:00:03]} 19. Bf1 {[%emt 0:00:55]} Ba6 {[%emt 0:00:21]} 20. Bxa6+ {[%emt 0:03:28]} Qxa6 {[%emt 0:00:05]} 21. Bg5 {[%emt 0:00:29]} Bxg5 {[%emt 0:00:15]} 22. hxg5 {[%emt 0:00:18]} Kd7 {[%emt 0:00:53]} 23. Qf3 {[%emt 0:04:28]} Ke7 {[%emt 0:00:11] The position is equal.} 24. Rac1 {[%emt 0:02:00]} Rc8 {[%emt 0:00:05]} 25. Qe3 {[%emt 0:05:32]} Rxc1 {[%emt 0:00:31]} 26. Rxc1 $11 {[%emt 0:00:34][%mdl 4096] Endgame KQR-KQR} Rc8 {[%emt 0:00:04] Dodges Rc7+} 27. b3 {[%emt 0:01:04]} g6 {[%emt 0:07:51]} 28. Kg2 {[%emt 0:11:26]} Rxc1 {[%emt 0:01:40]} 29. Qxc1 {[%emt 0:00:10] KQ-KQ} Qb6 {[%emt 0:00:01]} 30. Qf4 {[%emt 0:05:46]} Ke8 {[%emt 0:00:19]} 31. Qh4 {[%emt 0:03:44]} Ke7 {[%emt 0:00:35]} 32. Qf4 {[%emt 0:03:04]} Ke8 {[%emt 0:00:05]} 33. Kh2 {[%emt 0:01:40]} Qc7 {[%emt 0:01:00]} 34. Qf6 {[%emt 0:01:07]} Qc2 {[%emt 0:00:06]} 35. Qh8+ {[%emt 0:00:24]} Ke7 {[%emt 0:00:20]} 36. Qf6+ {[%emt 0:00:37]} (36. Qxh7 $2 {too greedy.} Qxf2+ (36... Qxb3 37. Qh8 $17) 37. Kh3 Qf3 $19 (37... Qxd4 38. Qh8 $17)) 36... Ke8 {[%emt 0:00:05]} 37. Qh8+ {[%emt 0:00:11]} Ke7 {[%emt 0:00:22]} 38. Qf6+ {[%emt 0:00:07] Weighted Error Value: White=0.13 (very precise) /Black=0.10 (very precise)   Mistake:       	White=1     	Black=1      Inaccurate:     	White=5     	Black=3      OK:         	White=12    	Black=14     Best:        	---       	Black=2      Strong:       	---       	Black=1} (38. Qxh7 Qxf2+ (38... Qxb3 39. Qh8 $17) 39. Kh3 Qf5+ (39... Qxd4 $2 40. Qh8 $17) 40. Kh2 Qxg5 $15) 1/2-1/2

[Event "Budapest One Week IM-B 03-2025"]
[Site "Budapest"]
[Date "2025.03.21"]
[Round "8.5"]
[White "Kustar, Sandor"]
[Black "Varga, Zoltan"]
[Result "1/2-1/2"]
[Annotator "TA"]
[ECO "A05"]
[WhiteElo "2231"]
[BlackElo "2305"]
[PlyCount "56"]
[EventDate "2025.03.17"]
[EventType "tourn"]
[EventCountry "HUN"]
[SourceTitle "playchess.com"]
[Source "ChessBase"]
[SourceQuality "1"]
[TimeControl "5400+30"]

{[%evp 14,56,58,56,105,94,94,87,111,97,187,50,44,-6,52,-29,-25,0,0,-40,-45,-50,-44,-43,-31,-45,0,-42,24,20,20,26,21,12,44,39,47,51,602,-1734,37,0,13,11,11]} 1. Nf3 Nf6 2. c4 d5 3. cxd5 Nxd5 4. d4 g6 5. e4 Nb6 6. Nc3 Bg7 7. Be3 {7.h3 is the fancy move.} O-O 8. Be2 f5 {D70: Grünfeld: Unusual White 3rd moves (met by ...d5).} (8... Bg4 $14 {is more appropriate.}) 9. exf5 $146 (9. Qb3+ Kh8 10. Rd1 f4 11. Bc1 a5 12. a4 Nc6 13. e5 Nb4 14. Ng5 e6 15. O-O Qxg5 16. Ne4 {0-1 Schoewer,T (1757)-Wiengarten,R (1580) Muensterland Verbandsklasse 1819 2018 (7.6)}) 9... Bxf5 10. Qb3+ Kh8 {White is better.} 11. Ng5 {g4 would now be deadly. White is more active.} Qe8 (11... Nc6 $16) 12. Bf3 ({White should try} 12. g4 $18 Bd7 13. O-O-O) 12... Nc6 $14 13. Rd1 (13. d5 $14 Ne5 14. Be2) 13... Rd8 (13... e5 $11 14. Bxc6 bxc6 15. dxe5 h6) 14. Ne6 {A sharp opening} (14. d5 $14 Na5 15. Qb4) 14... Bxe6 $11 15. Qxe6 Nxd4 (15... Bxd4 $2 16. Rxd4 Nxd4 17. Bxd4+ Rxd4 18. Qe5+ (18. Bxb7 $2 Qf7 $19) 18... Rf6 19. Qxd4 $18) 16. Rxd4 Rxd4 (16... Bxd4 $2 17. Bxd4+ (17. Bxb7 $2 {perishes.} Qf7 $19) 17... Rxd4 18. Qe5+ (18. Bxb7 $2 Qf7 $19) 18... Rf6 19. Qxd4 $18) 17. Bxd4 Bxd4 18. O-O c6 19. Rd1 Bg7 20. a4 a5 (20... Qf7 $15 21. Qe2 Bxc3 22. bxc3 Nxa4) 21. Qb3 Nd7 22. Qxb7 Ne5 23. Be2 Qb8 24. Qxe7 Qxb2 25. Rd8 $1 Qb4 $2 {[%mdl 8192] [#]} (25... Qc1+ $14 26. Bf1 Qf4) 26. Bf1 $4 {[%mdl 8192]} Qf4 $2 (26... Qxe7 $19 27. Rxf8+ Bxf8) 27. Rxf8+ (27. Ne4 $5) 27... Qxf8 28. Qxf8+ Bxf8 {Weighted Error Value: White=0.54/Black=0.99  Loses game:     	---       	Black=1      Missed win:     	White=1     	Black=1      Mistake:       	White=3     	Black=3      Inaccurate:     	White=2     	Black=2      OK:         	White=5     	Black=2      Best:        	White=1     	Black=2      Strong:       	White=1     	---} 1/2-1/2

[Event "Budapest One Week IM-B 03-2025"]
[Site "Budapest"]
[Date "2025.03.22"]
[Round "9.1"]
[White "Varga, Zoltan"]
[Black "Pribelszky, Bence"]
[Result "1/2-1/2"]
[Annotator "TA"]
[ECO "C50"]
[WhiteElo "2305"]
[BlackElo "2400"]
[PlyCount "43"]
[EventDate "2025.03.17"]
[EventType "tourn"]
[EventCountry "HUN"]
[SourceTitle "playchess.com"]
[Source "ChessBase"]
[SourceQuality "1"]
[TimeControl "5400+30"]

{[%evp 10,43,11,11,12,-22,0,-53,-46,-50,-49,-62,-62,-62,-58,-62,-60,-49,-45,-95,-94,-91,-87,-120,-98,-123,-119,-147,-108,-112,-113,-132,-8,-6,-5,-5]} 1. e4 e5 2. Nf3 Nc6 3. Bc4 Bc5 4. d3 Nf6 5. Bb3 d6 6. c3 a5 {C54: Giuoco Piano: 4 c3 Nf6, main lines with 5 d4 and 5 d3.} 7. Qe2 O-O 8. Nbd2 (8. a4 $11) 8... a4 $15 {Black is slightly better.} 9. Bc2 h6 $146 (9... Re8 10. Nf1 d5 11. Ng3 d4 12. O-O a3 13. b4 Bb6 14. b5 Na7 15. c4 c6 {0-1 Krzywda,A (2105)-Wagner,D (2572) Titled Tuesday intern op 08th June blitz 2021 (3)}) 10. Nc4 b5 11. Ne3 d5 12. Nxd5 Nxd5 13. exd5 Qxd5 14. Qe4 {Prevents Bf5} (14. O-O $15) 14... Qxe4+ $17 15. dxe4 Be6 16. a3 f6 17. O-O Na5 18. Rd1 Bb3 19. Bxb3+ Nxb3 20. Rb1 Nxc1 (20... Rfd8 $17 21. Bd2 Bb6) 21. Rbxc1 $11 Rfd8 22. Kf1 {Weighted Error Value: White=0.19 (very precise) /Black=0.24 (precise)   Mistake:       	White=2     	Black=1      Inaccurate:     	White=2     	---        OK:         	White=5     	Black=4      Best:        	---       	Black=1} 1/2-1/2

[Event "Budapest One Week IM-B 03-2025"]
[Site "Budapest"]
[Date "2025.03.22"]
[Round "9.2"]
[White "Jing, Andrew"]
[Black "Kustar, Sandor"]
[Result "1-0"]
[Annotator "TA"]
[ECO "D72"]
[WhiteElo "2198"]
[BlackElo "2231"]
[PlyCount "47"]
[EventDate "2025.03.17"]
[EventType "tourn"]
[EventCountry "HUN"]
[SourceTitle "playchess.com"]
[Source "ChessBase"]
[SourceQuality "1"]
[TimeControl "5400+30"]

{[%evp 22,47,3,7,19,-10,27,9,34,23,29,36,42,30,78,84,86,68,85,76,162,113,166,117,110,105,626,622]} 1. d4 {[%emt 0:11:20]} Nf6 {[%emt 0:00:11]} 2. c4 {[%emt 0:00:04]} g6 {[%emt 0:00:09]} 3. g3 {[%emt 0:00:04]} Bg7 {[%emt 0:00:16]} 4. Bg2 {[%emt 0:00:15]} d5 {[%emt 0:00:21]} 5. cxd5 {[%emt 0:00:23]} Nxd5 {[%emt 0:00:08]} 6. e4 {[%emt 0:00:04]} Nb6 {[%emt 0:00:24]} 7. Ne2 {[%emt 0:00:05]} c5 {[%emt 0:00:22]} 8. d5 {[%emt 0:01:26]} e6 {[%emt 0:00:16]} 9. O-O {[%emt 0:01:46]} O-O {[%emt 0:00:16]} 10. Nec3 {[%emt 0:00:46]} Na6 {[%emt 0:03:52]} 11. a4 {[%emt 0:01:29]} exd5 {[%emt 0:00:41]} 12. exd5 {[%emt 0:00:04]} Nc4 {[%emt 0:02:32] D72: Fianchetto Grünfeld: 5 cxd5 Nxd5 6 e4 Nb6 (without Nf3).} 13. Na3 {[%emt 0:04:24]} Nxa3 {[%emt 0:04:05]} 14. Rxa3 {[%emt 0:00:05]} Bf5 {[%emt 0:01:17] The position is equal.} 15. g4 {[%emt 0:06:22]} Bd7 {[%emt 0:04:13]} 16. d6 $146 {[%emt 0:05:40]} (16. Ne4 f5 17. gxf5 Rxf5 18. Ng3 Rf7 19. d6 Bc6 20. Bd5 Nb4 21. Bxf7+ Kxf7 22. Re1 {1-0 Zia,T (2255)-Grebennikov,N (2220) Budapest SixDays 09 GM-C 2024 (2)}) 16... Nb4 {[%emt 0:13:23]} 17. Ne4 $36 {[%emt 0:05:16][%mdl 2048] White fights for an advantage.} Rc8 {[%emt 0:07:38]} (17... Qc8 $11 {deserves consideration.}) 18. Bg5 $16 {[%emt 0:02:15]} f6 {[%emt 0:00:13] [#]} 19. Bd2 {[%emt 0:03:29][%cal Oe4c5] Black must now prevent Nxc5!.} a5 {[%emt 0:06:24]} 20. Rg3 {[%emt 0:03:18] White is more active.} f5 {[%emt 0:03:31]} (20... Bc6 $16) 21. gxf5 $18 {[%emt 0:00:21]} Bxf5 {[%emt 0:00:15]} (21... Rxf5 $16 {is a better defense.} 22. Bc3 Nd5) 22. Bg5 {[%emt 0:01:32]} (22. Bc3 $18) 22... Qd7 $16 {[%emt 0:01:24][%cal Of5e4]} 23. Be7 {[%emt 0:00:17]} Bxb2 $2 {[%emt 0:01:04][%mdl 8192] [#]} (23... Rfe8 $16) 24. Qb3+ {[%emt 0:00:54] Weighted Error Value: White=0.11 (very precise) /Black=0.59  Loses game:     	---       	Black=1      Mistake:       	White=1     	Black=3      Inaccurate:     	White=1     	Black=1      OK:         	White=4     	Black=4      Best:        	White=4     	Black=1} 1-0

[Event "Budapest One Week IM-B 03-2025"]
[Site "Budapest"]
[Date "2025.03.22"]
[Round "9.3"]
[White "Turcsanyi, Vince Gergo"]
[Black "Luebke, Florentin"]
[Result "1-0"]
[Annotator "TA"]
[ECO "B67"]
[WhiteElo "2285"]
[BlackElo "2233"]
[PlyCount "57"]
[EventDate "2025.03.17"]
[EventType "tourn"]
[EventCountry "HUN"]
[SourceTitle "playchess.com"]
[Source "ChessBase"]
[SourceQuality "1"]
[TimeControl "5400+30"]

{[%evp 16,56,43,27,20,19,20,22,34,-9,52,59,31,37,37,43,147,164,154,153,137,81,284,271,267,256,260,188,316,329,735,510,605,606,1560,1527,1643,1605,29991,29992,29993,29994,29999]} 1. e4 {[%emt 0:00:20]} c5 {[%emt 0:00:25]} 2. Nf3 {[%emt 0:00:27]} d6 {[%emt 0:01:44]} 3. d4 {[%emt 0:00:20]} cxd4 {[%emt 0:00:11]} 4. Nxd4 {[%emt 0:00:05]} Nf6 {[%emt 0:00:16]} 5. Nc3 {[%emt 0:00:09]} Nc6 {[%emt 0:00:28]} 6. Bg5 {[%emt 0:00:23]} e6 {[%emt 0:00:21]} 7. Qd2 {[%emt 0:00:24]} a6 {[%emt 0:00:12]} 8. O-O-O {[%emt 0:03:06]} Bd7 {[%emt 0:00:17]} 9. Kb1 {[%emt 0:08:30]} Nxd4 {[%emt 0:02:04] B67: Sicilian: Richter-Rauzer: 7...a6 8 0-0-0 Bd7, lines without 9 f4 Be7.} 10. Qxd4 {[%emt 0:00:10]} Be7 {[%emt 0:00:10]} 11. Rg1 {[%emt 0:01:08]} h6 {[%emt 0:16:57] The position is equal.} 12. Bh4 $146 {[%emt 0:17:17]} (12. Be3 Bc6 13. g4 d5 14. exd5 Nxd5 15. Nxd5 Qxd5 16. Bg2 Qxd4 17. Bxc6+ bxc6 18. Rxd4 {½-½ Foldes,M (2261)-Collins,A (2155) Budapest One Week IM-A 12 2024 (7)}) 12... e5 {[%emt 0:08:01]} (12... O-O $11) 13. Qd2 {[%emt 0:04:30]} g5 {[%emt 0:00:36]} 14. Bg3 {[%emt 0:00:13]} b5 {[%emt 0:01:15][%cal Bb7b5,Bb5b4][%mdl 32]} 15. f3 {[%emt 0:08:18]} O-O {[%emt 0:06:57]} ({Better is} 15... b4 $14) 16. h4 $16 {[%emt 0:13:08]} b4 {[%emt 0:15:09]} 17. Ne2 {[%emt 0:00:23][%cal Bc3e2,Be2g3,Bg3h5][%mdl 32]} Nh5 {[%emt 0:02:06]} 18. hxg5 {[%emt 0:04:47]} (18. Qxb4 Nxg3 19. Nxg3 Rb8 $17) (18. Bf2 $142) 18... hxg5 $2 {[%emt 0:16:43] [#] Loses the game.} (18... Bxg5 $16 19. Qxb4 (19. Qxd6 Be6 $17) 19... Nxg3) 19. Rh1 $18 {[%emt 0:03:52]} (19. Qxb4 Nxg3 20. Nxg3 Rb8 $17) 19... Nxg3 {[%emt 0:13:43]} 20. Nxg3 {[%emt 0:00:32][%cal Of1c4]} Be6 {[%emt 0:00:14]} 21. Bd3 {[%emt 0:18:09]} (21. Qxb4 d5 22. Qa4 Bd6) 21... Kg7 {[%emt 0:06:54]} (21... a5 {keeps fighting.} 22. Rh6 (22. Nf5 Bxf5 23. exf5 Bf6 $18) 22... Bf6) 22. Nh5+ {[%emt 0:02:14]} ({Don't play} 22. Qxb4 a5 23. Qd2 Qc7 24. Nh5+ Kg8 $18) 22... Kg6 $2 {[%emt 0:00:02]} (22... Kg8 23. g4 (23. Qxb4 a5 $16) 23... Re8) 23. g3 {[%emt 0:02:26][%cal Of3f4,Bg2g3,Bg3g4][%mdl 32] [#]} (23. Qxb4 Rb8 24. Qd2 Rh8 $16) 23... f6 {[%emt 0:00:02]} 24. f4 {[%emt 0:00:24] f5+ is the strong threat.} f5 {[%emt 0:03:38]} 25. exf5+ {[%emt 0:01:03]} Bxf5 {[%emt 0:00:06]} 26. g4 {[%emt 0:00:33]} Bxd3 {[%emt 0:00:38]} 27. Qxd3+ {[%emt 0:00:04] White mates.} Kf7 {[%emt 0:00:10] Black is weak on the light squares} 28. Qf5+ {[%emt 0:00:17]} Ke8 {[%emt 0:00:09]} 29. Ng7# {[%emt 0:00:05] Weighted Error Value: White=0.28 (precise) /Black=1.19  Loses game:     	---       	Black=1      Mistake:       	White=1     	Black=4      Inaccurate:     	White=2     	Black=1      OK:         	White=5     	Black=5      Best:        	White=1     	---} 1-0

[Event "Budapest One Week IM-B 03-2025"]
[Site "Budapest"]
[Date "2025.03.22"]
[Round "9.4"]
[White "Venkatesh, Narayan"]
[Black "Mrithyunjay Mahadevan"]
[Result "1-0"]
[Annotator "TA"]
[ECO "D11"]
[WhiteElo "2203"]
[BlackElo "2295"]
[PlyCount "49"]
[EventDate "2025.03.17"]
[EventType "tourn"]
[EventCountry "HUN"]
[SourceTitle "playchess.com"]
[Source "ChessBase"]
[SourceQuality "1"]
[TimeControl "5400+30"]

{[%evp 17,49,5,35,44,99,98,106,86,95,93,184,185,187,82,160,69,58,61,55,56,69,31,97,97,650,658,1129,1112,1152,1150,1099,51,1093,1085]} 1. d4 {[%emt 0:06:09]} d5 {[%emt 0:15:19]} 2. c4 {[%emt 0:00:02]} c6 {[%emt 0:00:42]} 3. Nf3 {[%emt 0:00:16]} Nf6 {[%emt 0:00:05]} 4. e3 {[%emt 0:00:09]} e6 {[%emt 0:01:33]} 5. Bd3 {[%emt 0:00:25]} Nbd7 {[%emt 0:00:49]} 6. O-O {[%emt 0:00:23]} dxc4 {[%emt 0:00:29]} 7. Bxc4 {[%emt 0:00:17]} b5 {[%emt 0:00:16]} 8. Bd3 {[%emt 0:00:28]} Bb7 {[%emt 0:00:19]} 9. a4 {[%emt 0:00:39]} a6 {[%emt 0:00:39]} 10. e4 {[%emt 0:01:36][%cal Be3e4,Be4e5][%mdl 32] D30: Queen's Gambit Declined: Systems without Nc3.} Qb6 {[%emt 0:03:31]} (10... b4 $14) 11. Qe2 $16 {[%emt 0:07:55]} h6 $146 {[%emt 0:09:18]} (11... Be7 12. Be3 O-O 13. Rc1 b4 14. a5 Qa7 15. d5 Bc5 16. Rxc5 Nxc5 17. Qc2 Nfd7 18. dxe6 fxe6 {1-0 Pascua,H (2425)-Barbe,T (2059) Pattaya Thailand op 2nd 2019 (2)}) 12. e5 {[%emt 0:07:50] White is better.} Nd5 {[%emt 0:00:07]} 13. Nc3 {[%emt 0:00:16]} b4 {[%emt 0:01:10] [#]} (13... bxa4 $16 14. Nxa4 Qa7) 14. Nxd5 $1 $18 {[%emt 0:02:12]} cxd5 {[%emt 0:00:03]} 15. Be3 {[%emt 0:02:16]} (15. a5 $18 {is more deadly.} Qa7 16. Be3) 15... Be7 {[%emt 0:07:42]} (15... a5 $142) 16. Nd2 {[%emt 0:06:08]} (16. a5 $16 Qd8 17. Nd2) 16... a5 $14 {[%emt 0:00:13]} 17. Rac1 $36 {[%emt 0:03:12][%mdl 2048] White has good play.} Ba6 {[%emt 0:01:39]} 18. f4 {[%emt 0:04:33]} g6 {[%emt 0:01:30]} 19. g4 {[%emt 0:06:51] White is more active.} h5 {[%emt 0:05:14]} ({Black should play} 19... Bxd3 $14 20. Qxd3 Qa6 21. Qxa6 Rxa6) 20. f5 $16 {[%emt 0:04:08]} hxg4 $2 {[%emt 0:00:08][%mdl 8192]} (20... Bxd3 $16 21. Qxd3 gxf5) 21. fxg6 $18 {[%emt 0:01:19] [#] Threatens to win with Bxa6.} fxg6 {[%emt 0:00:02]} 22. Bxa6 {[%emt 0:01:15]} ({Not} 22. Bxg6+ Kd8 23. Bd3 Bxd3 24. Qxd3 Rc8 $16) 22... Qxa6 {[%emt 0:01:21]} 23. Qxa6 {[%emt 0:00:19]} Rxa6 {[%emt 0:00:04]} 24. Rc8+ {[%emt 0:00:06]} Bd8 {[%emt 0:00:04]} 25. Bg5 {[%emt 0:00:18] Weighted Error Value: White=0.15 (very precise) /Black=1.22  Loses game:     	---       	Black=1      Mistake:       	White=2     	Black=4      Inaccurate:     	White=1     	Black=1      OK:         	White=4     	Black=3      Best:        	White=2     	---} 1-0